fUST/lending_fUST_20260205
["ID","MTS","AMOUNT","RATE_DAILY","PERIOD"]
[404561589,1770293349271,-657.4433754,0.0004261,4]
[404561590,1770293349297,-1991.22275984,0.000429,2]
[404561591,1770293349326,-294.0,0.00044951,30]
[404561592,1770293349347,-292.0,0.00044973,7]
[404561593,1770293349369,-292.0,0.00045534,2]
[404561594,1770293349391,-292.0,0.00045725,7]
[404561595,1770293349411,-292.0,0.00046173,2]
[404561596,1770293349432,-292.0,0.00046611,2]
[404561597,1770293349453,-295.0,0.00046666,7]
[404561598,1770293349474,-295.0,0.00046896,2]
[404561599,1770293349493,-292.0,0.00047175,7]
[404561600,1770293349515,-292.0,0.00047228,30]
[404561601,1770293349539,-294.0,0.00047379,7]
[404561602,1770293349560,-295.0,0.00047482,120]
[404561603,1770293349581,-150.0,0.00047482,120]
[404561604,1770293349601,-294.0,0.00047602,120]
[404561605,1770293349622,-292.0,0.00047619,120]
[404561606,1770293349643,-292.0,0.00047623,7]
[404561607,1770293349663,-292.0,0.0004785,2]
[404561608,1770293349684,-294.0,0.00047983,7]
[404561609,1770293349710,-294.0,0.00048264,2]
[404561610,1770293349730,-292.0,0.00048354,2]
[404561611,1770293349750,-295.0,0.00048621,30]
[404561612,1770293349772,-600.0,0.00048807,120]
[404561613,1770293349793,-292.0,0.0004882,2]
[404561614,1770293349813,-292.0,0.00048887,2]
[404561615,1770293349833,-292.0,0.00048989,30]
[404561616,1770293349854,-294.0,0.00049131,2]
[404561617,1770293349874,-292.0,0.00049253,120]
[404561618,1770293349899,-177.0,0.00049482,120]
[404561619,1770293349924,-204.0,0.00051482,120]
[404561620,1770293357584,741.26793723,0.0003175,2]
[404561621,1770293368130,-231.0,0.00053482,120]
[404561622,1770293368151,-200.0,0.00054794,120]
[404561623,1770293368171,-500.0,0.00054794,120]
[404561624,1770293368191,-500.0,0.00054794,120]
[404561625,1770293368211,-500.0,0.00054794,60]
[404561626,1770293368230,-500.0,0.00054794,54]
[404561627,1770293368250,-500.0,0.00054794,120]
[404561628,1770293368271,-500.0,0.00054794,120]
[404561629,1770293368291,-500.0,0.00054794,120]
[404561630,1770293368313,-500.0,0.00054794,120]
[404561631,1770293368334,-546.07,0.00054794,120]
[404561632,1770293368437,-500.0,0.00054794,120]
[404561633,1770293368460,-206.52457207,0.00054794,120]
[404561634,1770293368480,-500.0,0.00054794,120]
[404561635,1770293368499,-500.0,0.00054794,120]
[404561636,1770293368520,-500.0,0.00054794,120]
[404561637,1770293368540,-500.0,0.00054794,120]
[404561638,1770293368561,-500.0,0.00054794,120]
[404561639,1770293368581,-500.0,0.00054794,120]
[404561640,1770293368601,-619.94574127,0.00054794,120]
[404561641,1770293370105,-5.15413561,0.00054794,120]
[404561642,1770293370125,-500.0,0.00054794,120]
[404561643,1770293370145,-561.9,0.00054794,120]
[404561644,1770293370165,-500.0,0.00054794,120]
[404561645,1770293370185,-500.0,0.00054794,120]
[404561646,1770293370204,-500.0,0.00054794,120]
[404561647,1770293370224,-500.0,0.00054794,21]
[404561648,1770293370243,-500.0,0.00054794,120]
[404561649,1770293370263,-500.0,0.00054794,2]
[404561650,1770293370282,-500.0,0.00054794,120]
[404561651,1770293370306,-595.82288384,0.00054794,120]
[404561652,1770293370326,-270.31345374,0.00055342,120]
[404561653,1770293370345,-500.0,0.00055342,120]
[404561654,1770293370365,-579.20387122,0.00055342,120]
[404561655,1770293370385,-500.0,0.00055342,120]
[404561656,1770293370406,-234.66,0.00055342,120]
[404561657,1770293370426,-500.0,0.00055342,120]
[404561658,1770293370445,-500.0,0.00055342,120]
[404561659,1770293370467,-150.58,0.00055342,120]
[404561660,1770293370486,-500.0,0.00055342,120]
[404561661,1770293370506,-500.0,0.00055342,120]
[404561662,1770293370527,-486.51,0.00055342,120]
[404561663,1770293370549,-159.27,0.00055342,120]
[404561664,1770293370568,-500.0,0.00055342,120]
[404561665,1770293370588,-500.0,0.00055342,120]
[404561666,1770293370608,-500.0,0.00055342,120]
[404561667,1770293370627,-503.47,0.00055342,21]
[404561668,1770293370645,-500.0,0.00055342,120]
[404561669,1770293370664,-500.0,0.00055342,2]
[404561670,1770293370683,-500.0,0.00055342,120]
[404561671,1770293370707,-258.0,0.00055482,120]
[404561672,1770293376454,500.0,0.00054794,120]
[404561675,1770293417184,538.73,0.00054794,120]
[404561710,1770293432209,-1000.0,0.00055888,2]
[404561711,1770293432220,-500.0,0.00055888,120]
[404561712,1770293432230,-1041.66666667,0.00055888,2]
[404561713,1770293432241,-600.0,0.00055889,120]
[404561714,1770293432251,-500.0,0.0005589,120]
[404561716,1770293432262,-500.0,0.0005589,120]
[404561717,1770293432273,-151.3,0.0005589,2]
[404561719,1770293432283,-331.888491,0.00056436,120]
[404561720,1770293432293,-500.0,0.00056438,120]
[404561721,1770293432303,-500.0,0.00056438,120]
[404561722,1770293432313,-280.43322751,0.00056984,120]
[404561723,1770293432323,-500.0,0.00056986,120]
[404561725,1770293432334,-500.0,0.00056986,120]
[404561726,1770293432347,-4364.68115399,0.00057432,28]
[404561727,1770293432357,-285.0,0.00057482,120]
[404561728,1770293432370,-500.0,0.00057532,120]
[404561729,1770293432380,-500.0,0.00057532,120]
[404561730,1770293432390,-500.0,0.00057532,120]
[404561731,1770293432401,-500.0,0.00057532,120]
[404561732,1770293432411,-500.0,0.00057532,120]
[404561733,1770293432422,-500.0,0.00057534,120]
[404561734,1770293432432,-500.0,0.00057534,120]
[404561735,1770293432442,-587.82988844,0.00057844,2]
[404561736,1770293432452,-1045.03091277,0.00057844,2]
[404561737,1770293432462,-1631.22794041,0.00057844,2]
[404561738,1770293432473,-2000.0,0.00058,120]
[404561739,1770293432483,-576.76,0.0005808,120]
[404561740,1770293432494,-500.0,0.0005808,120]
[404561741,1770293432504,-500.0,0.00058082,120]
[404561742,1770293432514,-564.67,0.00058082,120]
[404561743,1770293432526,-500.0,0.0005863,120]
[404561744,1770293432536,-500.0,0.00059178,120]
[404561745,1770293432547,-1991.22275984,0.00059225,2]
[404561746,1770293432557,-312.0,0.00059482,120]
[404561747,1770293432568,-500.0,0.00059726,120]
[404561748,1770293432579,-614.28,0.0006,120]
[404561749,1770293432593,-500.0,0.00060273,120]
[404561750,1770293432604,-499.40723001,0.00060821,120]
[404561751,1770293432615,-169.88,0.000613,14]
[404561752,1770293432626,-720.0,0.00061478,120]
[404561753,1770293432636,-339.0,0.00061482,120]
[404561754,1770293432647,-229.04158356,0.00063482,120]
[404561755,1770293432658,-864.0,0.00067626,120]
[404561756,1770293432669,-166.00558273,0.00068493,2]
[404561757,1770293432680,-279.51725811,0.00072603,120]
[404561758,1770293432691,-1000.0,0.00074388,120]
[404561759,1770293432702,-1991.22275984,0.0007555,2]
[404561760,1770293432714,-213.356769,0.000798,120]
[404561761,1770293432725,-284.475692,0.0008075,120]
[404561762,1770293432735,-1000.0,0.00081827,120]
[404561763,1770293432747,-244.0,0.00081827,120]
[404561764,1770293432758,-200.0,0.00082,120]
[404561765,1770293432769,-200.0,0.00083,120]
[404561766,1770293432780,-200.0,0.00084,120]
[404561767,1770293432792,-200.0,0.00085,120]
[404561768,1770293432803,-213.356769,0.000855,120]
[404561769,1770293432813,-302.0,0.00086,120]
[404561770,1770293432824,-855.54898679,0.000898,120]
[404561783,1770293437685,-9144.45101321,0.000898,120]
[404561784,1770293437695,-600.0,0.0009,120]
[404561786,1770293437705,-674.30316293,0.0009,120]
[404561788,1770293437715,-1000.0,0.0009,120]
[404561790,1770293437727,-1000.0,0.0009001,120]
[404561792,1770293437737,-492.0,0.0009001,120]
[404561794,1770293437747,-405.0,0.0009146,120]
[404561796,1770293437756,-1991.22275984,0.00091875,2]
[404561798,1770293437766,-792.70662951,0.0009423,120]
[404561800,1770293437776,-1000.0,0.00099011,120]
[404561802,1770293437785,-791.0,0.00099011,120]
[404561803,1770293437796,-269.72,0.0009911,120]
[404561804,1770293437806,-1257.2638325,0.001,120]
[404561805,1770293437816,-999.91900001,0.001,120]
[404561806,1770293437825,-1000.0,0.001,120]
[404561807,1770293437834,-1000.0,0.001,120]
[404561808,1770293437846,-1000.0,0.001,120]
[404561809,1770293437855,-1000.0,0.001,120]
[404561810,1770293437864,-273.75801122,0.00103739,120]
[404561811,1770293437873,-150.0,0.0010374,120]
[404561812,1770293437882,-309.669335,0.0010374,120]
[404561813,1770293437892,-469.33867,0.0010374,120]
[404561814,1770293437901,-629.008006,0.0010374,120]
[404561815,1770293437911,-788.677341,0.0010374,120]
[404561816,1770293437920,-948.346677,0.0010374,120]
[404561817,1770293437930,-1108.016012,0.0010374,120]
[404561818,1770293437939,-1267.685348,0.0010374,120]
[404561819,1770293437947,-1427.354683,0.0010374,120]
[404561820,1770293437956,-1587.024019,0.0010374,120]
[404561821,1770293437966,-150.0,0.0010621,120]
[404561822,1770293437976,-194.556358,0.0010621,120]
[404561823,1770293437986,-239.112717,0.0010621,120]
[404561824,1770293437995,-283.669075,0.0010621,120]
[404561825,1770293438005,-328.225434,0.0010621,120]
[404561827,1770293438015,-372.781792,0.0010621,120]
[404561828,1770293438025,-417.338151,0.0010621,120]
[404561830,1770293438035,-461.894509,0.0010621,120]
[404561832,1770293438045,-506.450868,0.0010621,120]
[404561834,1770293438054,-551.007226,0.0010621,120]
[404561836,1770293438064,-1991.22275984,0.001082,2]
[404561838,1770293438074,-1000.0,0.00108912,120]
[404561840,1770293438085,-1000.0,0.00108912,120]
[404561842,1770293438097,-872.49793686,0.00108999,30]
[404561844,1770293438107,-600.0,0.0011,120]
[404561846,1770293438116,-1000.0,0.0011,120]
[404561848,1770293438127,-2496.0,0.001111,120]
[404561850,1770293438137,-711.0,0.0011358,31]
[404561852,1770293438147,-204.72505301,0.00114984,86]
[404561854,1770293438157,-224.78,0.00118,120]
[404561856,1770293438167,-21450.7337472,0.00118,120]
[404561858,1770293438176,-151.0,0.001184,65]
[404561860,1770293438186,-999.0,0.00118899,120]
[404561862,1770293438196,-5000.0,0.001189,120]
[404561864,1770293438206,-500.0,0.0011899,120]
[404561865,1770293438215,-517.74433047,0.0011899,120]
[404561867,1770293438225,-1000.0,0.00119803,120]
[404561870,1770293438236,-1000.0,0.00119803,120]
[404561872,1770293438245,-579.0,0.00119803,120]
[404561873,1770293438255,-159.65734986,0.00119889,120]
[404561875,1770293438265,-243.92,0.00119889,10]
[404561877,1770293438275,-203.27,0.00119889,10]
[404561879,1770293438285,-159.65734985,0.00119893,120]
[404561881,1770293438295,-159.65734985,0.00119896,120]
[404561883,1770293438305,-827374.43926669,0.00119899,120]
[404562049,1770293439955,-70328.6744151,0.00119899,120]
[404562399,1770293452278,591.9926,0.0003799,2]
[404562400,1770293472273,3676.63907739,0.00040091,20]
[404562401,1770293480321,5000.0,0.00040091,20]
[404562402,1770293492475,1016.36028555,0.00029,10]
[404562403,1770293492496,25.30638112,0.00029,10]
[404562404,1770293492881,1041.66666667,0.00028,7]
[404562405,1770293511298,1393.85593189,0.00026575,2]
[404562406,1770293512065,1393.85593189,0.000429,2]
[404562407,1770293582200,5772.575234,0.00040091,120]
[404562408,1770293584201,500.0,0.00013273,2]
[404562419,1770294189438,22721.96232615,0.00040255,20]
[404562420,1770294202422,49146.0,0.00040255,30]
[404562423,1770294274411,19893.0,0.00040255,20]
[404562424,1770294318874,16680.0,0.00040272,20]
[404562425,1770294330107,-691.13,0.00015342,2]
[404562426,1770294330130,-101.0647686,0.00025205,2]
[404562427,1770294357117,-1118.8129768,0.00025205,2]
[404562428,1770294357139,-400.0,0.00032219,2]
[404562429,1770294357159,-1172.0,0.00032219,3]
[404562430,1770294357179,-6590.1536,0.0003222,30]
[404562431,1770294357199,-200.04,0.00037588,2]
[404562432,1770294357220,-937.0,0.00040255,20]
[404562433,1770294357242,-668.18000003,0.00040272,20]
[404562434,1770294357263,-209.00618255,0.00042845,4]
[404562435,1770294357283,-836.02473022,0.00044934,4]
[404562436,1770294357303,-151.0,0.00050136,30]
[404562437,1770294357324,-500.0,0.00054794,120]
[404562438,1770294357343,-500.0,0.00054794,120]
[404562439,1770294357365,-214.27130407,0.00054794,120]
[404562445,1770294443100,-386.39229579,0.00024703,10]
[404562446,1770294443123,-569.32391615,0.00024953,10]
[404562447,1770294443170,26542.52476557,0.00040272,30]
[404562448,1770294443485,304004.67184719,0.00040272,20]
[404562449,1770294444285,12667.0,0.00040272,20]
[404562450,1770294445033,16733.26104553,0.00040272,120]
[404562451,1770294473556,5541.21009238,0.00012,5]
[404562452,1770294473585,104530.11520471,0.00012,5]
[404562453,1770294476333,51141.63544317,0.00040272,90]
[404562455,1770294494176,13487.17681206,0.00040272,30]
[404562456,1770294504873,24345.21553339,0.00040272,120]
[404562457,1770294505102,152438.0,0.00040272,30]
[404562458,1770294507115,11448.79126901,0.00040272,30]
[404562459,1770294508500,10064.1338695,0.00040272,20]
[404562460,1770294508591,6480.20094955,0.00040272,30]
[404562461,1770294511078,139530.08520094,0.00040272,30]
[404562468,1770294528548,2198.67,0.0001,2]
[404562469,1770294547118,-565.88,0.0001799,3]
[404562470,1770294547140,-282.94,0.0001799,3]
[404562471,1770294547158,-848.87,0.0001799,3]
[404562472,1770294547177,-300.0,0.00017999,2]
[404562473,1770294547199,-8304.86534309,0.00018,2]
[404562474,1770294551182,-151775.5988,0.00018,2]
[404562475,1770294554124,-63572.59988643,0.00018,2]
[404562476,1770294554144,-8367.8914561,0.00019,2]
[404562477,1770294555291,-4785.73904922,0.00019,2]
[404562478,1770294555311,-1131.76,0.0001936,3]
[404562479,1770294555331,-565.88,0.0001936,3]
[404562480,1770294555351,-420.0,0.00019639,2]
[404562481,1770294555371,-196.2,0.000197,2]
[404562482,1770294555391,-587.0,0.00021428,2]
[404562483,1770294555411,-569.11434779,0.00022,14]
[404562484,1770294555431,-224.0,0.00023381,2]
[404562485,1770294555450,-784.64930823,0.0002465,2]
[404562486,1770294555469,-2553.98326428,0.000249,2]
[404562487,1770294555491,-4430.67608385,0.00024953,10]
[404562488,1770294555511,-851.32775476,0.0002499,2]
[404562489,1770294555530,-2761.3208,0.0002499,2]
[404562490,1770294555548,-326096.33815767,0.00025,30]
[404562491,1770294555566,-208.08058082,0.00026475,2]
[404562492,1770294555588,-500.0,0.00027397,5]
[404562493,1770294555606,-1002.92671423,0.00027945,5]
[404562494,1770294555625,-200406.33843642,0.00028,30]
[404562495,1770294555732,-42598.46868498,0.000285,7]
[404562496,1770294555753,-741.26793723,0.000285,7]
[404562497,1770294555772,-5818.24401517,0.0002876,30]
[404562498,1770294555791,-173.17304942,0.000288,7]
[404562499,1770294555810,-682.66711273,0.0003,2]
[404562500,1770294555829,-2988.10279937,0.0003,7]
[404562501,1770294555849,-306.8690357,0.0003099,2]
[404562502,1770294555868,-741.26793723,0.00031986,2]
[404562503,1770294555888,-201.18892114,0.00032,2]
[404562504,1770294555908,-2873.69595258,0.00032,2]
[404562505,1770294555928,-1650.05,0.00032877,10]
[404562506,1770294555948,-1375.04,0.00032877,10]
[404562507,1770294555968,-28686.38,0.000329,14]
[404562508,1770294555989,-5206.25020792,0.00033,120]
[404562509,1770294556011,-480.79759264,0.000345,120]
[404562510,1770294556030,-23078.35510898,0.0003479,5]
[404562511,1770294556053,-132931.36126109,0.00035,2]
[404562512,1770294558169,-1145.87,0.0003499,10]
[404562513,1770294558190,-43411.23515258,0.00035,2]
[404562514,1770294561198,-3538.58346001,0.0003465,2]
[404562515,1770294561219,-125058.23014396,0.00035,2]
[404562516,1770294561238,-15278.40373956,0.00035,5]
[404562517,1770294561260,-283.0,0.00035259,3]
[404562518,1770294561279,-205.50222287,0.0003621,2]
[404562519,1770294561299,-267.28560454,0.0003624,2]
[404562520,1770294561327,-32589.66537066,0.0003979,2]
[404562521,1770294572100,-183.266383,0.00035632,2]
[404562522,1770294572119,-870.71935572,0.0003979,2]
[404562555,1770294631840,-500.0,0.00013699,2]
[404562556,1770294631849,-465.83169452,0.00014247,2]
[404562561,1770294631897,-358.46705108,0.00014247,2]
[404562587,1770294638175,-175.7012544,0.00014247,2]
[404562589,1770294638186,-1500.0,0.00014795,2]
[404562591,1770294638198,-2000.0,0.00015342,2]
[404562592,1770294638208,-2500.0,0.0001589,2]
[404562594,1770294638218,-3000.0,0.00016438,2]
[404562596,1770294638229,-1146.21935002,0.00016986,2]
[404562597,1770294638240,-500.0,0.00017999,2]
[404562598,1770294638250,-500.0,0.00017999,2]
[404562599,1770294638261,-191.12559314,0.00017999,2]
[404562600,1770294638272,-500.0,0.00017999,2]
[404562601,1770294638284,-500.0,0.00017999,2]
[404562602,1770294638295,-500.0,0.00017999,2]
[404562603,1770294638306,-500.0,0.00017999,2]
[404562604,1770294638319,-500.0,0.00017999,2]
[404562605,1770294638329,-538.79210724,0.00017999,2]
[404562606,1770294638339,-500.0,0.00017999,2]
[404562607,1770294638349,-193.68831942,0.00017999,2]
[404562608,1770294638359,-1094.0,0.00030136,2]
[404562609,1770294638370,-5000.0,0.00030137,120]
[404562610,1770294638380,-5000.0,0.00030137,120]
[404562611,1770294638390,-741.26793723,0.00031939,2]
[404562612,1770294638400,-10000.0,0.00034704,2]
[404562613,1770294638410,-176.4250532,0.00039064,10]
[404562614,1770294638420,-34515.23196778,0.0003979,2]
[404562615,1770294638434,-638.62939941,0.000399,2]
[404562616,1770294638444,-954.89,0.0003999,10]
[404562617,1770294638455,-757306.81835006,0.0004,120]
[404562618,1770294638465,-30273.4407541,0.0004,30]
[404562619,1770294638475,-957.49,0.0004,14]
[404562620,1770294638485,-39011.98,0.0004,2]
[404562621,1770294638496,-4181.0,0.00040214,2]
[404562622,1770294638508,-780.3261441,0.00040214,7]
[404562623,1770294638520,-111322.18625989,0.00040214,30]
[404562624,1770294638530,-76684.93327129,0.00040214,30]
[404562625,1770294638541,-51123.41896077,0.00040214,30]
[404562626,1770294638551,-22856.09344095,0.00040214,30]
[404562627,1770294638563,-31730.1804001,0.00040214,30]
[404562628,1770294638574,-195453.15028685,0.00040214,30]
[404562629,1770294638586,-4185.59729105,0.00040214,30]
[404562630,1770294638598,-2435.17447835,0.00040214,30]
[404562631,1770294638611,-5151.86730799,0.00040214,30]
[404562679,1770294640855,-163.49,0.0004,30]
[404562681,1770294640867,-144.48594263,0.00040214,30]
[404562683,1770294640882,-34627.5,0.00040214,30]
[404563326,1770294668288,-5000.0,0.00030137,120]
[404563327,1770294668298,-795.74,0.00040204,10]
[404563328,1770294668309,-151.0,0.00040214,120]
[404563329,1770294668319,-927619.00714549,0.00040214,30]
[404563330,1770294671550,-151.0,0.00040214,120]
[404563331,1770294671559,-1348.60986596,0.00040214,30]
[404563332,1770294708404,-500.0,0.00017999,2]
[404563333,1770294708433,-500.0,0.00017999,2]
[404563334,1770294708463,-279.34509819,0.00017999,2]
[404563335,1770294708476,-259.44700905,0.00017999,2]
[404563336,1770294708486,-240.55299095,0.00017999,2]
[404563337,1770294708498,-259.44700905,0.00017999,2]
[404563338,1770294708507,-240.55299095,0.00017999,2]
[404563339,1770294708519,-259.44700905,0.00017999,2]
[404563340,1770294708528,-279.34509819,0.00017999,2]
[404563341,1770294723573,934.9014,0.00020068,120]
[404563342,1770294723744,934.9014,0.00020375,120]
[404563343,1770294724111,934.9014,0.00020477,120]
[404563344,1770294724305,934.9014,0.00020682,120]
[404563345,1770294724511,934.9014,0.00020887,120]
[404563346,1770294809632,-500.0,0.00013699,2]
[404563347,1770294809652,-501.19049799,0.00013699,2]
[404563348,1770294809672,-500.46907504,0.00013699,2]
[404563349,1770294809692,-500.92722611,0.00013699,2]
[404563350,1770294809716,-500.0,0.00013699,2]
[404563351,1770294809735,-166.86578823,0.00013699,2]
[404563352,1770294809755,-191.43968169,0.00013699,2]
[404563353,1770294814553,-309.3456175,0.00013699,2]
[404563354,1770294814574,-63.84086747,0.00013699,2]
[404563355,1770294816009,-436.50624604,0.00013699,2]
[404563356,1770294816031,-501.21055458,0.00013699,2]
[404563357,1770294816052,-48.5701956,0.00013699,2]
[404563358,1770294822594,-451.4298044,0.00013699,2]
[404563359,1770294822616,-500.90548219,0.00013699,2]
[404563360,1770294822636,-47.66471341,0.00013699,2]
[404563361,1770294824924,-113.31085716,0.00013699,2]
[404563362,1770294824944,-386.68914284,0.00013699,2]
[404563363,1770294829056,-114.08625505,0.00013699,2]
[404563364,1770294829075,-160.10211275,0.00013699,2]
[404563365,1770294829096,-89.5316322,0.00013699,2]
[404563366,1770294854595,-561.9187011,0.00013426,2]
[404563367,1770294856657,-500.0,0.00013426,2]
[404563368,1770294861119,-500.0,0.00013426,2]
[404563369,1770294957001,4000.0,0.00012562,2]
[404563370,1770295006543,-500.0,0.00013273,2]
[404563371,1770295006563,-5000.0,0.00013292,2]
[404563372,1770295006583,-722.0,0.00013425,2]
[404563373,1770295006606,-3438.0812989,0.00013426,2]
[404563374,1770295006627,-300.0,0.0001356,2]
[404563375,1770295006647,-39.9187011,0.0001356,2]
[404563376,1770295008661,-260.0812989,0.0001356,2]
[404563377,1770295008682,-300.0,0.00013561,2]
[404563378,1770295008702,-300.0,0.00013561,2]
[404563379,1770295008722,-300.0,0.00013561,2]
[404563380,1770295008741,-5000.0,0.00013562,2]
[404563381,1770295008763,-3839.9187011,0.00013599,2]
[404563382,1770295014058,-3000.0,0.00013463,2]
[404563383,1770295037085,-5000.0,0.00013195,2]
[404563384,1770295037107,-5000.0,0.00013328,2]
[404563386,1770295042365,5000.0,0.00013328,2]
[404563387,1770295071729,-5000.0,0.00013266,2]
[404563388,1770295074124,217.8906981,0.00012678,2]
[404563389,1770295075963,-5000.0,0.000134,2]
[404563390,1770295139357,-5000.0,0.00013195,2]
[404563391,1770295139378,-150.0,0.00013262,2]
[404563392,1770295139399,-4850.0,0.00013328,2]
[404563393,1770295147212,-150.0,0.00013328,2]
[404563394,1770295147449,500.0,0.00013273,2]
[404563395,1770295150881,3350.0,0.000134,2]
[404563396,1770295208514,3623.64592564,0.00013012,2]
[404563397,1770295229346,-5000.0,0.00013266,2]
[404563398,1770295247748,-5000.0,0.00013266,2]
[404563399,1770295269555,-5000.0,0.0001327,2]
[404563400,1770295292494,-808.72815905,0.00013266,2]
[404563401,1770295412062,300.0,0.00012646,2]
[404563402,1770295540116,-500.0,0.00013273,2]
[404563403,1770295540137,-482.46412445,0.00013273,2]
[404563404,1770295540156,-336.60853574,0.00013273,2]
[404563405,1770295540176,-506.42857759,0.00013273,2]
[404563406,1770295540197,-601.09751578,0.00013273,2]
[404563407,1770295540217,-500.0,0.00013273,2]
[404563408,1770295540236,-500.0,0.00013273,2]
[404563409,1770295540256,-500.0,0.00013273,2]
[404563410,1770295540275,-500.0,0.00013273,2]
[404563411,1770295540294,-500.58253669,0.00013273,2]
[404563412,1770295540314,-500.0,0.00013273,2]
[404563413,1770295540332,-500.0,0.00013273,2]
[404563414,1770295540355,-500.0,0.00013273,2]
[404563415,1770295540375,-500.0,0.00013273,2]
[404563416,1770295540395,-500.0,0.00013273,2]
[404563417,1770295540414,-396.90119587,0.00013273,2]
[404563418,1770295540434,-25189.08066203,0.00013273,2]
[404563419,1770295540455,-5000.0,0.00013286,2]
[404563420,1770295540475,-150.0,0.00013353,2]
[404563421,1770295540494,-300.0,0.00013419,2]
[404563422,1770295540515,-300.0,0.00013419,2]
[404563423,1770295540536,-300.0,0.00013419,2]
[404563424,1770295540560,-300.0,0.00013419,2]
[404563425,1770295540580,-300.0,0.00013419,2]
[404563426,1770295540601,-4078.60743675,0.00013497,2]
[404563427,1770295540620,-151.05626831,0.00013673,2]
[404563428,1770295540640,-300.0,0.00013673,2]
[404563429,1770295540660,-500.0,0.00013694,2]
[404563430,1770295540682,-500.0,0.00013694,2]
[404563431,1770295540703,-500.0,0.00013694,2]
[404563432,1770295540725,-500.0,0.00013694,2]
[404563433,1770295540745,-500.98104691,0.00013694,2]
[404563434,1770295540767,-500.0,0.00013694,2]
[404563435,1770295540787,-460.21040713,0.00013694,2]
[404563436,1770295540809,-500.0,0.00013694,2]
[404563437,1770295540830,-500.0,0.00013694,2]
[404563438,1770295540851,-500.0,0.00013694,2]
[404563439,1770295540871,-500.0,0.00013694,2]
[404563440,1770295540893,-500.0,0.00013694,2]
[404563441,1770295540913,-321.56609449,0.00013694,2]
[404563442,1770295540934,-500.0,0.00013694,2]
[404563443,1770295540957,-500.0,0.00013694,2]
[404563444,1770295540979,-500.0,0.00013694,2]
[404563445,1770295541003,-500.0,0.00013694,2]
[404563446,1770295541028,-500.0,0.00013694,2]
[404563447,1770295541051,-500.0,0.00013694,2]
[404563448,1770295541074,-500.0,0.00013694,2]
[404563449,1770295541095,-253.68354101,0.00013694,2]
[404563450,1770295541116,-500.0,0.00013694,2]
[404563451,1770295541137,-500.0,0.00013694,2]
[404563452,1770295541159,-500.0,0.00013694,2]
[404563453,1770295541181,-500.0,0.00013694,2]
[404563454,1770295541203,-500.0,0.00013694,2]
[404563455,1770295541223,-500.0,0.00013694,2]
[404563456,1770295541247,-500.0,0.00013694,2]
[404563457,1770295541273,-500.0,0.00013694,2]
[404563458,1770295541295,-500.0,0.00013694,2]
[404563459,1770295541319,-500.0,0.00013694,2]
[404563460,1770295541341,-500.0,0.00013694,2]
[404563461,1770295541367,-500.0,0.00013694,2]
[404563462,1770295541389,-500.0,0.00013694,2]
[404563463,1770295541412,-500.0,0.00013694,2]
[404563464,1770295541437,-500.0,0.00013694,2]
[404563465,1770295541458,-500.0,0.00013694,2]
[404563466,1770295541479,-500.0,0.00013694,2]
[404563467,1770295541632,-479.14336947,0.00013694,2]
[404563468,1770295541658,-500.0,0.00013694,2]
[404563469,1770295541680,-500.0,0.00013694,2]
[404563470,1770295541703,-512.75154541,0.00013694,2]
[404563471,1770295541726,-500.0,0.00013694,2]